bitfinex-derivatives/quotes_BNBF0:USTF0_20250303
["timestamp","ask_amount","ask_price","bid_price","bid_amount"]
[1741022482353,0.33541851,596.27,595.21,0.26676768]
[1741022482550,0.33541851,596.27,595.22,0.26676768]
[1741022482746,0.33541851,596.27,595.21,0.26676768]
[1741022482947,0.33541851,596.27,595.22,0.26676768]
[1741022483149,0.33541851,596.27,595.21,0.26676768]
[1741022483348,0.33541851,596.27,595.22,0.2664854]
[1741022483556,0.33541851,596.27,595.23,0.2664854]
[1741022483753,0.33541851,596.27,595.21,0.2664854]
[1741022484051,0.33541851,596.27,595.22,0.2664854]
[1741022484255,0.33541851,596.27,595.23,0.2664854]
[1741022484456,0.33541851,596.27,595.24,0.2664854]
[1741022484753,0.33541851,596.27,595.2,0.3360215]
[1741022484754,0.33541851,596.27,595.25,0.2664854]
[1741022484957,0.33541851,596.27,595.26,0.2664854]
[1741022485155,0.33541851,596.27,595.27,0.2664854]
[1741022485357,0.33541851,596.27,595.28,0.2664854]
[1741022485659,0.33541851,596.27,595.29,0.2664854]
[1741022485857,0.33541851,596.27,595.3,0.2664854]
[1741022486358,0.33541851,596.27,595.31,0.2664854]
[1741022486557,0.33541851,596.27,595.32,0.2664854]
[1741022486758,0.33541851,596.27,595.21,0.2664854]
[1741022486956,0.33541851,596.27,595.22,0.2664854]
[1741022487156,0.33541851,596.27,595.23,0.2664854]
[1741022487454,0.33541851,596.27,595.24,0.2664854]
[1741022487653,0.33541851,596.27,595.25,0.2664854]
[1741022487858,0.33541851,596.27,595.26,0.26651639]
[1741022488158,0.33541851,596.27,595.27,0.26651639]
[1741022488354,0.33541851,596.27,595.28,0.26651639]
[1741022488561,0.33541851,596.27,595.29,0.26651639]
[1741022488754,0.33541851,596.27,595.3,0.26651639]
[1741022488956,0.33541851,596.27,595.31,0.26651639]
[1741022489154,0.33541851,596.27,595.32,0.26651639]
[1741022489354,0.33541851,596.27,595.2,0.3360215]
[1741022489557,0.33541851,596.27,595.21,0.26643608]
[1741022491558,1.019,596.26,595.21,0.26643608]
[1741022492163,0.33542976,596.25,595.21,0.26643608]
[1741022493261,0.33542976,596.25,595.22,0.26612819]
[1741022493467,0.33542976,596.25,595.21,0.26612819]
[1741022493665,0.33542976,596.25,595.22,0.26612819]
[1741022493860,0.33542976,596.25,595.21,0.26612819]
[1741022494058,0.33542976,596.25,595.22,0.26615765]
[1741022494266,0.33542976,596.25,595.23,0.26615765]
[1741022494459,0.33542976,596.25,595.2,0.3360215]
[1741022494460,0.33542976,596.25,595.21,0.26615765]
[1741022494765,0.33542976,596.25,595.22,0.26615765]
[1741022494965,0.33542976,596.25,595.21,0.26615765]
[1741022495165,0.33542976,596.25,595.22,0.26615765]
[1741022495365,0.33542976,596.25,595.21,0.26615765]
[1741022495562,0.33542976,596.25,595.22,0.26615765]
[1741022495760,0.33542976,596.25,595.23,0.26615765]
[1741022495963,0.33542976,596.25,595.24,0.26615765]
[1741022496267,0.33542976,596.25,595.25,0.26615765]
[1741022496461,0.33542976,596.25,595.26,0.26615765]
[1741022496659,0.33542976,596.25,595.27,0.26615765]
[1741022496864,0.33542976,596.25,595.28,0.26615765]
[1741022497061,0.33542976,596.25,595.22,0.26615765]
[1741022497262,0.33542976,596.25,595.23,0.26631184]
[1741022497463,0.33542976,596.25,595.24,0.26631184]
[1741022497662,0.33542976,596.25,595.25,0.26631184]
[1741022497864,0.33542976,596.25,595.22,0.26631184]
[1741022498064,0.33542976,596.25,595.23,0.26631184]
[1741022498266,0.33542976,596.25,595.22,0.26631184]
[1741022498465,0.33542976,596.25,595.23,0.26631184]
[1741022498666,0.33542976,596.25,595.22,0.26631184]
[1741022498858,0.33542976,596.25,595.23,0.26631184]
[1741022499063,0.33542976,596.25,595.22,0.26631184]
[1741022499261,0.33542976,596.25,595.23,0.26631184]
[1741022499568,0.33542976,596.25,595.24,0.26631184]
[1741022499868,0.33542976,596.25,595.25,0.26631184]
[1741022500167,0.33542976,596.25,595.26,0.26631184]
[1741022500367,0.33542976,596.25,595.27,0.26631184]
[1741022500561,0.33542976,596.25,595.28,0.26631184]
[1741022500765,0.33542976,596.25,595.21,0.26631184]
[1741022500967,0.33542976,596.25,595.22,0.26631184]
[1741022501267,0.33542976,596.25,595.23,0.26631184]
[1741022501462,0.33542976,596.25,595.24,0.26631184]
[1741022501667,0.33542976,596.25,595.25,0.26631184]
[1741022501868,0.33542976,596.25,595.26,0.26605093]
[1741022502064,0.33542976,596.25,595.21,0.26605093]
[1741022502373,0.33542976,596.25,595.22,0.26605093]
[1741022502566,0.33542976,596.25,595.23,0.26605093]
[1741022502763,0.33542976,596.25,595.24,0.26605093]
[1741022502962,0.33542976,596.25,595.21,0.26605093]
[1741022503165,0.33542976,596.25,595.22,0.26605093]
[1741022503362,0.33542976,596.25,595.21,0.26605093]
[1741022503568,0.33542976,596.25,595.22,0.26605093]
[1741022503763,0.33542976,596.25,595.23,0.26605093]
[1741022503967,0.33542976,596.25,595.32,1.48183192]
[1741022504264,0.33542976,596.25,595.33,0.26605093]
[1741022504765,0.33542976,596.25,595.32,1.48183192]
[1741022505066,0.33542976,596.25,595.33,0.26605412]
[1741022506667,0.33542976,596.25,595.34,0.26605412]
[1741022506972,0.33542976,596.25,595.35,0.26605412]
[1741022507168,0.33542976,596.25,595.32,0.26605412]
[1741022507373,0.33542976,596.25,595.33,0.26605412]
[1741022507574,0.33542976,596.25,595.32,0.26605412]
[1741022507768,0.33542976,596.25,595.33,0.26605412]
[1741022507974,0.33542976,596.25,595.31,1.48183192]
[1741022507975,0.33542976,596.25,595.32,0.26605412]
[1741022508276,0.33542976,596.25,595.33,0.26605412]
[1741022508473,0.33542976,596.25,595.34,0.26605412]
[1741022508672,0.33542976,596.25,595.35,0.26605412]
[1741022508884,0.33542976,596.25,595.36,0.26605412]
[1741022509068,0.33542976,596.25,595.37,0.26605412]
[1741022509269,0.33542976,596.25,595.38,0.26605412]
[1741022509474,0.33542976,596.25,595.28,1.48183192]
[1741022509774,0.33542976,596.25,595.29,0.26629582]
[1741022511376,0.33542976,596.25,595.21,0.26629582]
[1741022511675,0.33542976,596.25,595.22,0.26629582]
[1741022511876,0.33542976,596.25,595.21,0.26629582]
[1741022512176,0.33542976,596.25,595.22,0.26629582]
[1741022512378,0.33542976,596.25,595.21,0.26629582]
[1741022512677,0.33542976,596.25,595.22,0.26629582]
[1741022512877,0.33542976,596.25,595.21,0.26629582]
[1741022513077,0.33542976,596.25,595.22,0.26629582]
[1741022513377,0.33542976,596.25,595.23,0.26629582]
[1741022513575,1.461,596.24,595.21,0.26629582]
[1741022513778,1.461,596.24,595.22,0.26629582]
[1741022514075,1.461,596.24,595.23,0.26629582]
[1741022514272,1.461,596.24,595.2,0.3360215]
[1741022514273,1.461,596.24,595.24,0.26629582]
[1741022514476,1.461,596.24,595.25,0.26629582]
[1741022514678,1.461,596.24,595.26,0.26629582]
[1741022514875,1.461,596.24,595.21,0.26629582]
[1741022515078,1.461,596.24,595.22,0.26629582]
[1741022515271,1.461,596.24,595.23,0.26629582]
[1741022515474,1.461,596.24,595.2,0.3360215]
[1741022515475,1.461,596.24,595.21,0.26629582]
[1741022515677,1.461,596.24,595.2,0.3360215]
[1741022515877,1.461,596.24,595.21,0.26614176]
[1741022517175,1.461,596.24,595.2,0.3360215]
[1741022517383,1.461,596.24,595.21,0.26615689]
[1741022518081,1.226,596.23,595.21,0.26615689]
[1741022518778,1.226,596.23,595.24,1.48183192]
[1741022518979,1.226,596.23,595.25,0.26615689]
[1741022520484,1.226,596.23,595.26,1.48183192]
[1741022520684,1.226,596.23,595.27,0.26615689]
[1741022522282,1.56144102,596.23,595.27,0.26615689]
[1741022522578,1.56144102,596.23,595.34,1.48183192]
[1741022522779,1.56144102,596.23,595.35,0.26615689]
[1741022522984,1.56144102,596.23,595.34,1.48183192]
[1741022523185,1.56144102,596.23,595.35,0.26649218]
[1741022524685,1.56144102,596.23,595.37,1.48183192]
[1741022524890,1.56144102,596.23,595.38,0.26650436]
[1741022525788,1.56144102,596.23,595.37,1.48183192]
[1741022525984,1.56144102,596.23,595.38,0.26658634]
[1741022526182,1.56144102,596.23,595.37,1.48183192]
[1741022526389,1.56144102,596.23,595.38,0.26659983]
[1741022527787,1.039,596.22,595.39,0.26659983]
[1741022527988,1.039,596.22,595.4,0.26659983]
[1741022528194,1.039,596.22,595.41,0.26659983]
[1741022528389,1.039,596.22,595.21,0.26659983]
[1741022528589,1.039,596.22,595.22,0.60261004]
[1741022528797,1.039,596.22,595.23,0.26659983]
[1741022529193,1.039,596.22,595.24,0.33599892]
[1741022529398,1.039,596.22,595.25,0.26659983]
[1741022529596,1.039,596.22,595.24,0.33599892]
[1741022529597,1.039,596.22,595.26,0.60209173]
[1741022529793,1.039,596.22,595.27,0.2661041]
[1741022529999,1.039,596.22,595.27,0.60208609]
[1741022530197,1.039,596.22,595.28,0.2661041]
[1741022530399,1.039,596.22,595.29,0.3359707]
[1741022530599,1.039,596.22,595.3,0.2661041]
[1741022530803,1.039,596.22,595.31,0.33595941]
[1741022531301,1.039,596.22,595.32,0.26606865]
[1741022531699,1.039,596.22,595.32,0.60202242]
[1741022531900,1.039,596.22,595.33,0.26606865]
[1741022532098,1.039,596.22,595.35,1.48183192]
[1741022532301,1.039,596.22,595.36,0.26606865]
[1741022532498,1.039,596.22,595.36,0.60199985]
[1741022532698,1.039,596.22,595.37,0.26606865]
[1741022532896,1.039,596.22,595.38,0.33591991]
[1741022533101,1.039,596.22,595.39,0.26606865]
[1741022535800,1.039,596.22,595.4,0.26584552]
[1741022536005,1.039,596.22,595.41,0.26584552]
[1741022536206,1.039,596.22,595.39,0.26584552]
[1741022536400,1.039,596.22,595.4,0.26584552]
[1741022536605,1.039,596.22,595.41,0.26584552]
[1741022536806,1.039,596.22,595.42,0.26584552]
[1741022537003,1.039,596.22,595.43,0.26584552]
[1741022537200,1.039,596.22,595.39,0.26584552]
[1741022537405,1.039,596.22,595.4,0.26584552]
[1741022537608,1.039,596.22,595.39,0.26584552]
[1741022537807,1.039,596.22,595.38,0.33591991]
[1741022537808,1.039,596.22,595.4,1.74767744]
[1741022538103,1.039,596.22,595.41,0.26584552]
[1741022540507,1.039,596.22,595.4,1.48183192]
[1741022540703,1.039,596.22,595.41,0.26574858]
[1741022540905,1.039,596.22,595.42,0.26574858]
[1741022541105,1.039,596.22,595.43,0.26574858]
[1741022541304,1.039,596.22,595.44,0.26574858]
[1741022541610,1.039,596.22,595.45,0.26574858]
[1741022541805,1.039,596.22,595.39,0.26574858]
[1741022542005,1.039,596.22,595.4,0.26574858]
[1741022542206,1.039,596.22,595.39,0.26574858]
[1741022542406,1.039,596.22,595.4,0.26574858]
[1741022542609,1.039,596.22,595.39,0.26574858]
[1741022542810,1.039,596.22,595.4,0.26574858]
[1741022543109,1.039,596.22,595.41,0.26574858]
[1741022543304,1.039,596.22,595.39,0.26574858]
[1741022543511,1.039,596.22,595.4,0.26574858]
[1741022543711,1.039,596.22,595.38,0.33591991]
[1741022543912,1.039,596.22,595.39,0.26554297]
[1741022545306,1.039,596.22,595.4,0.33590863]
[1741022545510,1.039,596.22,595.41,0.26554297]
[1741022545710,1.039,596.22,595.42,0.33589734]
[1741022545909,1.039,596.22,595.43,0.26554297]
[1741022546507,1.039,596.22,595.44,0.26550633]
[1741022546707,1.039,596.22,595.43,0.26550633]
[1741022546904,1.039,596.22,595.42,0.33589734]
[1741022546905,1.039,596.22,595.44,0.26550633]
[1741022547111,1.039,596.22,595.43,0.26550633]
[1741022547312,1.039,596.22,595.44,0.26550633]
[1741022547509,1.039,596.22,595.45,0.26550633]
[1741022547711,1.039,596.22,595.46,0.26550633]
[1741022547910,1.039,596.22,595.43,0.26550633]
[1741022548107,1.039,596.22,595.44,0.26550633]
[1741022548307,1.039,596.22,595.43,0.26550633]
[1741022548512,1.039,596.22,595.44,0.26550633]
[1741022548713,1.039,596.22,595.43,0.26550633]
[1741022548912,1.039,596.22,595.44,0.26550633]
[1741022549111,1.039,596.22,595.45,0.26550633]
[1741022549309,1.039,596.22,595.46,0.26550633]
[1741022549507,1.039,596.22,595.47,0.26550633]
[1741022549712,1.039,596.22,595.48,0.26550633]
[1741022549909,1.039,596.22,595.43,0.26550633]
[1741022550113,1.039,596.22,595.44,0.26550633]
[1741022550410,1.039,596.22,595.45,0.26550633]
[1741022550617,1.039,596.22,595.46,0.26550633]
[1741022550817,1.039,596.22,595.47,0.26550633]
[1741022551016,1.039,596.22,595.48,0.26550633]
[1741022551217,1.039,596.22,595.49,0.26550633]
[1741022551414,1.039,596.22,595.5,0.26550633]
[1741022551611,1.039,596.22,595.43,0.26550633]
[1741022551813,1.039,596.22,595.44,0.26550633]
[1741022552012,1.039,596.22,595.45,0.26550633]
[1741022552212,1.039,596.22,595.46,0.26550633]
[1741022552518,1.039,596.22,595.47,0.26550633]
[1741022552718,1.039,596.22,595.48,0.26550633]
[1741022552918,1.226,596.23,595.49,0.26550633]
[1741022553119,1.226,596.23,595.42,0.33589734]
[1741022553321,1.226,596.23,595.43,0.26517487]
[1741022553515,1.226,596.23,595.42,0.33589734]
[1741022553516,1.226,596.23,595.44,0.2651541]
[1741022553720,1.226,596.23,595.45,0.2651541]
[1741022553918,1.226,596.23,595.46,0.2651541]
[1741022554114,1.226,596.23,595.47,0.2651541]
[1741022554314,1.226,596.23,595.48,0.2651541]
[1741022554513,1.226,596.23,595.49,0.2651541]
[1741022554723,1.226,596.23,595.5,0.2651541]
[1741022555117,1.226,596.23,595.51,0.60100068]
[1741022555314,1.226,596.23,595.52,0.2651541]
[1741022555518,1.226,596.23,595.53,0.2651541]
[1741022555815,1.226,596.23,595.51,0.33584658]
[1741022555816,1.226,596.23,595.54,0.2651541]
[1741022556019,0.99,596.22,595.55,0.2651541]
[1741022556219,0.99,596.22,595.56,0.2651541]
[1741022556521,0.99,596.22,595.57,0.2651541]
[1741022556719,0.99,596.22,595.58,0.2651541]
[1741022556915,0.99,596.22,595.59,0.2651541]
[1741022557221,0.99,596.22,595.6,0.2651541]
[1741022557422,0.99,596.22,595.61,0.2651541]
[1741022557622,0.99,596.22,595.62,0.2651541]
[1741022557821,0.99,596.22,595.63,0.2651541]
[1741022558018,0.99,596.22,595.64,0.2651541]
[1741022558218,0.99,596.22,595.65,0.2651541]
[1741022558419,0.99,596.22,595.52,0.2651541]
[1741022558620,0.99,596.22,595.53,0.2651541]
[1741022558821,0.99,596.22,595.54,0.2651541]
[1741022559020,0.99,596.22,595.55,0.2651541]
[1741022559220,0.99,596.22,595.56,0.2651541]
[1741022559517,0.99,596.22,595.57,0.2651541]
[1741022559721,0.99,596.22,595.58,0.60096121]
[1741022560016,0.99,596.22,595.59,0.2651541]
[1741022560221,0.99,596.22,595.6,0.2651541]
[1741022560522,0.99,596.22,595.61,0.2651541]
[1741022560713,0.99,596.22,595.62,0.60093866]
[1741022560915,0.99,596.22,595.63,0.60093302]
[1741022561217,0.99,596.22,595.64,0.60092738]
[1741022561416,0.99,596.22,595.64,0.33577328]
[1741022561620,0.99,596.22,595.65,0.26528517]
[1741022562220,0.99,596.22,595.66,0.33576201]
[1741022562417,0.99,596.22,595.67,0.26528517]
[1741022562620,0.99,596.22,595.68,0.33575073]
[1741022563222,0.99,596.22,595.69,0.26530929]
[1741022564021,0.99,596.22,595.7,0.33573946]
[1741022564217,0.99,596.22,595.71,0.26530929]
[1741022564422,0.99,596.22,595.72,0.33572819]
[1741022564624,0.99,596.22,595.73,0.26530929]
[1741022564824,0.99,596.22,595.74,0.33571692]
[1741022565017,0.99,596.22,595.75,0.26530929]
[1741022565219,0.99,596.22,595.76,0.33570565]
[1741022565426,0.99,596.22,595.77,0.26530929]
[1741022565725,0.99,596.22,595.78,0.33569438]
[1741022565923,0.99,596.22,595.79,0.26530929]
[1741022571019,0.99,596.22,595.78,0.33569438]
[1741022571223,0.99,596.22,595.79,0.26572216]
[1741022575431,1.294,596.21,595.79,0.26572216]
[1741022577431,1.294,596.21,595.8,0.26585641]
[1741022577633,1.294,596.21,595.79,0.26585641]
[1741022577832,1.294,596.21,595.8,0.26585641]
[1741022578029,1.294,596.21,595.79,0.26585641]
[1741022578235,1.294,596.21,595.8,0.26585641]
[1741022578434,1.294,596.21,595.78,0.33569438]
[1741022578435,1.294,596.21,595.79,0.26585641]
[1741022578633,1.294,596.21,595.8,0.26585641]
[1741022578834,1.294,596.21,595.78,0.33569438]
[1741022579734,1.294,596.21,595.39,1.48183192]
[1741022579929,1.294,596.21,595.4,0.60183053]
[1741022580136,1.294,596.21,595.41,0.2659219]
[1741022580334,1.294,596.21,595.41,0.60182489]
[1741022580536,1.294,596.21,595.41,0.33590299]
[1741022580733,1.294,596.21,595.42,0.26600457]
[1741022581141,1.294,596.21,595.43,0.3358917]
[1741022581335,1.294,596.21,595.44,0.26600457]
[1741022582342,1.218,596.2,595.44,0.26600457]
[1741022586550,1.218,596.2,595.45,0.26618338]
[1741022586750,1.218,596.2,595.46,0.26618338]
[1741022586950,1.218,596.2,595.47,0.26618338]
[1741022587146,1.218,596.2,595.44,0.26618338]
[1741022587953,1.218,596.2,595.45,0.26602527]
[1741022588153,1.218,596.2,595.44,0.26602527]
[1741022588345,1.218,596.2,595.45,0.26602527]
[1741022588550,1.218,596.2,595.44,0.26602527]
[1741022588750,1.218,596.2,595.45,0.26602527]
[1741022588952,1.218,596.2,595.46,0.26602527]
[1741022589152,1.218,596.2,595.44,0.26602527]
[1741022589348,1.218,596.2,595.45,0.26602527]
[1741022589549,1.218,596.2,595.44,0.26602527]
[1741022589747,1.218,596.2,595.45,0.26602527]
[1741022589949,1.218,596.2,595.44,0.26602527]
[1741022590147,1.218,596.2,595.45,0.26602527]
[1741022590356,1.218,596.2,595.46,0.26602527]
[1741022590549,1.218,596.2,595.44,0.26602527]
[1741022590755,1.218,596.2,595.45,0.26602527]
[1741022590957,1.218,596.2,595.46,0.26602527]
[1741022591154,1.218,596.2,595.44,0.26602527]
[1741022591351,1.218,596.2,595.45,0.26602527]
[1741022591551,1.218,596.2,595.44,0.26602527]
[1741022591750,1.218,596.2,595.45,0.26602527]
[1741022591947,1.218,596.2,595.46,0.26602527]
[1741022592155,1.218,596.2,595.47,0.26602527]
[1741022592356,1.218,596.2,595.44,0.26602527]
[1741022592551,1.218,596.2,595.45,0.26602527]
[1741022592857,1.218,596.2,595.46,0.26602527]
[1741022593056,1.218,596.2,595.47,0.26602527]
[1741022593250,1.218,596.2,595.44,0.26602527]
[1741022593453,1.218,596.2,595.45,0.26602527]
[1741022593653,1.218,596.2,595.43,0.3358917]
[1741022593654,1.218,596.2,595.44,0.26602527]
[1741022593853,1.218,596.2,595.43,0.3358917]
[1741022593854,1.218,596.2,595.45,0.26602527]
[1741022594150,1.218,596.2,595.46,0.26602527]
[1741022594456,1.218,596.2,595.47,0.26602527]
[1741022594654,1.218,596.2,595.44,0.26602527]
[1741022594855,1.218,596.2,595.45,0.26602527]
[1741022595157,1.218,596.2,595.46,0.26602527]
[1741022595358,1.218,596.2,595.44,0.26602527]
[1741022595551,1.218,596.2,595.45,0.26602527]
[1741022595751,1.218,596.2,595.44,0.26602527]
[1741022596056,1.218,596.2,595.45,0.26629975]
[1741022596256,1.218,596.2,595.44,0.26629975]
[1741022596450,1.218,596.2,595.45,0.26629975]
[1741022596656,1.218,596.2,595.44,0.26629975]
[1741022596856,1.218,596.2,595.43,0.3358917]
[1741022596857,1.218,596.2,595.45,0.26629975]
[1741022597052,1.218,596.2,595.44,0.26629975]
[1741022597256,1.218,596.2,595.45,0.26629975]
[1741022597454,1.218,596.2,595.46,0.26629975]
[1741022597655,1.218,596.2,595.44,0.26629975]
[1741022597858,1.218,596.2,595.45,0.26629975]
[1741022598053,1.218,596.2,595.46,0.26629975]
[1741022598259,1.218,596.2,595.47,0.26629975]
[1741022598459,1.218,596.2,595.44,0.26629975]
[1741022598666,1.218,596.2,595.45,0.26629975]
[1741022598867,1.218,596.2,595.44,0.26629975]
[1741022600460,1.218,596.2,595.43,0.3358917]
[1741022600762,1.218,596.2,595.44,0.26652984]
[1741022603660,1.218,596.2,595.45,0.26622448]
[1741022603860,1.218,596.2,595.44,0.26622448]
[1741022604067,1.218,596.2,595.45,0.26622448]
[1741022604258,1.218,596.2,595.44,0.26622448]
[1741022604463,1.218,596.2,595.45,0.26622448]
[1741022604658,1.218,596.2,595.46,0.26622448]
[1741022604863,1.218,596.2,595.44,0.26622448]
[1741022605061,1.218,596.2,595.45,0.26622448]
[1741022605261,1.218,596.2,595.46,0.26621868]
[1741022605458,1.218,596.2,595.44,0.26621868]
[1741022605759,1.218,596.2,595.45,0.26621868]
[1741022606066,1.218,596.2,595.46,0.26621868]
[1741022606258,1.218,596.2,595.17,0.26621868]
[1741022606459,1.218,596.2,595.18,0.26621868]
[1741022606663,1.218,596.2,595.17,0.26621868]
[1741022606857,1.218,596.2,595.18,0.26621868]
[1741022607062,1.218,596.2,595.19,0.26621868]
[1741022607257,1.218,596.2,595.2,0.26621868]
[1741022607461,1.218,596.2,595.21,0.26621868]
[1741022607763,1.218,596.2,595.22,0.26621868]
[1741022609158,1.218,596.2,595.23,0.33600456]
[1741022609464,1.218,596.2,595.24,0.26621868]
[1741022609660,1.218,596.2,595.25,0.33599328]
[1741022610064,1.218,596.2,595.26,0.26577137]
[1741022610264,1.218,596.2,595.27,0.33598199]
[1741022610463,1.218,596.2,595.28,0.26577137]
[1741022610765,1.218,596.2,595.29,0.3359707]
[1741022610961,1.218,596.2,595.3,0.26577137]
[1741022611162,1.218,596.2,595.3,0.60173642]
[1741022611361,1.218,596.2,595.31,0.26577137]
[1741022613559,1.218,596.2,595.3,0.33596505]
[1741022613759,1.218,596.2,595.31,0.26561038]
[1741022616565,1.218,596.2,595.35,1.48183192]
[1741022616765,1.218,596.2,595.36,0.26561038]
[1741022619566,1.218,596.2,595.48,1.48183192]
[1741022619765,1.218,596.2,595.49,0.26561038]
[1741022620863,1.218,596.2,595.48,1.48183192]
[1741022621169,1.218,596.2,595.49,0.26534683]
[1741022621767,1.218,596.2,595.57,1.48183192]
[1741022621969,1.218,596.2,595.58,0.26534683]
[1741022623870,1.218,596.2,595.67,1.48183192]
[1741022624070,1.218,596.2,595.68,0.26534683]
[1741022624565,1.218,596.2,595.69,0.26536815]
[1741022624773,1.218,596.2,595.7,0.26536815]
[1741022624970,1.218,596.2,595.71,0.26536815]
[1741022625171,1.218,596.2,595.72,0.26536815]
[1741022625468,1.218,596.2,595.67,1.48183192]
[1741022625667,1.218,596.2,595.68,0.26536904]
[1741022626772,1.218,596.2,595.41,0.26536904]
[1741022626969,1.218,596.2,595.42,0.26536904]
[1741022627170,1.218,596.2,595.41,0.26536904]
[1741022627472,1.218,596.2,595.42,0.26536904]
[1741022627773,1.218,596.2,595.43,0.26536904]
[1741022627975,1.218,596.2,595.44,0.26536904]
[1741022628276,1.218,596.2,595.45,0.26536904]
[1741022628474,1.218,596.2,595.41,0.26536904]
[1741022628674,1.218,596.2,595.42,0.26536904]
[1741022628876,1.218,596.2,595.41,0.26536904]
[1741022629070,1.218,596.2,595.4,1.48183192]
[1741022629071,1.218,596.2,595.42,0.26536904]
[1741022629277,1.218,596.2,595.43,0.26536904]
[1741022629472,1.218,596.2,595.39,0.26536904]
[1741022629674,1.218,596.2,595.4,0.26536904]
[1741022629873,1.218,596.2,595.41,0.26536904]
[1741022630071,1.218,596.2,595.39,0.26536904]
[1741022630370,1.218,596.2,595.4,0.26536904]
[1741022630572,1.218,596.2,595.39,0.26536904]
[1741022630779,1.218,596.2,595.4,0.26536904]
[1741022631075,1.218,596.2,595.41,0.26536904]
[1741022631272,1.218,596.2,595.42,0.26536904]
[1741022631470,1.218,596.2,595.38,0.26536904]
[1741022631671,2.413,596.2,595.39,0.26536904]
[1741022631871,2.413,596.2,595.4,0.26536904]
[1741022632073,2.413,596.2,595.41,0.26536904]
[1741022632369,2.413,596.2,595.42,0.26536904]
[1741022632575,2.413,596.2,595.43,0.26536904]
[1741022632776,2.413,596.2,595.44,0.26536904]
[1741022632969,2.413,596.2,595.31,0.26536904]
[1741022633171,2.413,596.2,595.32,0.26536904]
[1741022640992,2.413,596.2,595.33,0.2656618]
[1741022641287,2.413,596.2,595.49,1.48183192]
[1741022641493,2.413,596.2,595.5,0.2656618]
[1741022643392,2.413,596.2,595.54,1.48183192]
[1741022643589,2.413,596.2,595.55,0.2656618]
[1741022645193,2.413,596.2,595.59,1.48183192]
[1741022645389,2.413,596.2,595.6,0.2656618]
[1741022647293,2.413,596.2,595.63,1.48183192]
[1741022647488,2.413,596.2,595.64,0.2656618]
[1741022648991,2.413,596.2,595.65,0.26557293]
[1741022649189,2.413,596.2,595.64,0.26557293]
[1741022649394,2.413,596.2,595.65,0.26557293]
[1741022649592,2.413,596.2,595.66,0.26557293]
[1741022649794,2.413,596.2,595.67,0.26557293]
[1741022649993,2.413,596.2,595.57,1.48183192]
[1741022650700,2.413,596.2,595.58,0.26578988]
[1741022650895,2.413,596.2,595.57,1.48183192]
[1741022651093,2.413,596.2,595.58,0.26580452]
[1741022651892,2.413,596.2,595.57,1.48183192]
[1741022652099,2.413,596.2,595.36,1.48183192]
[1741022652403,2.413,596.2,595.37,0.26579907]
[1741022653705,2.413,596.2,595.36,1.48183192]
[1741022653900,2.413,596.2,595.37,0.26571723]
[1741022654906,2.413,596.2,595.38,0.26571723]
[1741022655107,2.413,596.2,595.32,0.26571723]
[1741022655406,2.413,596.2,595.33,0.26578476]
[1741022655606,2.413,596.2,595.32,0.26578476]
[1741022655901,2.413,596.2,595.33,0.26578476]
[1741022656106,2.413,596.2,595.34,0.26578476]
[1741022656301,2.413,596.2,595.35,0.26578476]
[1741022656501,2.413,596.2,595.36,0.26578476]
[1741022656699,2.413,596.2,595.37,0.26578476]
[1741022656901,2.413,596.2,595.32,0.26578476]
[1741022657098,2.413,596.2,595.31,0.33595941]
[1741022658809,2.413,596.2,595.24,1.48183192]
[1741022659408,2.413,596.2,594.97,2.52117237]
[1741022659608,2.413,596.2,594.98,0.60230001]
[1741022659809,2.413,596.2,594.99,0.60229436]
[1741022660109,0.33546352,596.19,594.99,0.3361401]
[1741022660303,0.33546352,596.19,595.0,0.26617204]
[1741022661705,1.54046352,596.19,594.99,0.3361401]
[1741022662010,1.54046352,596.19,595.0,0.26623187]
[1741022662706,1.7530971,596.18,595.0,0.26623187]